Cogmind - Beta 15 @@@ ROGUE MODE // 2025.05.13 @ 08:40:31 Player: Pitt Result: Destroyed by ZX-9LH(R) with Subdweller Beam Cannon Performance ------------- Evolutions (0) 0 Regions Visited (2) 400 Robots Destroyed (23) 115 Value Destroyed (322) 322 Prototype IDs (0) 0 Alien Tech Used (0) 0 Bonus (0) 0 TOTAL SCORE: 837 Bonus ------- None Cogmind --------- Core Integrity 0/250 Matter 220/300 Energy 96/100 System Corruption 0% Temperature Cool (9) Movement Core (150) Ox2 Location -10/Subcaves Parts ------- > --- POWER (1) -------- (None) > --- PROPULSION (2) --- (None) > --- UTILITY (2) ------ Improved Heat Sink Small Storage Unit > --- WEAPON (2) ------- Small Laser > --- INVENTORY (8) ---- Ion Engine Structural Scanner Improved Terrain Scanner Terrain Scan Processor Seismic Detector Recalibrator Grenade Launcher Mining Laser Peak State ------------ > --- POWER ------------ Ion Engine > --- PROPULSION ------- Wheel Compact Wheel > --- UTILITY ---------- Small Storage Unit Improved Terrain Scanner > --- WEAPON ----------- Small Laser Small Laser > --- INVENTORY -------- Ion Engine Light Ion Engine Wheel Wheel Seismic Detector Recalibrator Small Laser Mining Laser [Rating: 10] Favorites ----------- Power Ion Engine Engine Ion Engine Propulsion Wheel Wheel Wheel Utility Small Storage Unit Device Improved Terrain Scanner Storage Small Storage Unit Weapon Small Laser Energy Gun Small Laser Special Weapon Mining Laser Build | -11 -10 -10 ------- Run | Yrd Mat Sub Slots Evolved . | . . . Power . | . . . Propulsion . | . . . Utility . | . . . Weapon . | . . . Parts Attached 16 | 7 8 1 Power 3 | 1 2 . Engine 3 | 1 2 . Core . | . . . Reactor . | . . . Propulsion 3 | 2 1 . Treads . | . . . Leg . | . . . Wheel 3 | 2 1 . Hover . | . . . Flight . | . . . Utility 5 | 2 2 1 Device 4 | 1 2 1 Storage 1 | 1 . . Processor . | . . . Hackware . | . . . Protection . | . . . Artifact . | . . . Weapon 5 | 2 3 . Energy Gun 4 | 2 2 . Energy Cannon . | . . . Ballistic Gun . | . . . Ballistic Cannon . | . . . Launcher . | . . . Special Weapon 1 | . 1 . Impact Weapon . | . . . Slashing Weapon . | . . . Piercing Weapon . | . . . Special Melee Weapon . | . . . Unidentified Prototypes . | . . . Parts Lost 4 | . . 4 Power 1 | . . 1 Propulsion 2 | . . 2 Utility . | . . . Weapon 1 | . . 1 Highest Loss Streak 4 | . . 4 To Critical Strikes . | . . . Average Backups 7 | 2 7 8 Power 1 | . 1 1 Propulsion 1 | . 1 . Utility 2 | . 2 5 Weapon 1 | 1 1 2 Tool/Special . | . . . Unused Backups 7 | . 4 3 Power 1 | . 1 . Propulsion 2 | . 2 . Utility 2 | . . 2 Weapon 2 | . 1 1 Tool/Special . | . . . Average Slot Usage (%) 99 | . 99 98 Engine 13 | . 14 13 Wheel 27 | . 27 27 Device 14 | . 14 14 Storage 14 | . 14 14 Energy Gun 25 | . 27 18 Special Weapon 2 | . . 9 Peak Build Rating 10 | 8 10 10 Average Rating 9 | 6 9 9 On Entrance 5 | . 8 8 Naked Turns . | . . . Heaviest Build 13 | 13 13 11 Greatest Support 26 | 26 26 26 Greatest Overweight (x) . | . . . Average Overweight (x) . | . . . Largest Inventory Capacity 8 | 8 8 8 Average Capacity 7 | 7 8 8 Most Carried 8 | 8 8 8 Average Carried 7 | 2 7 8 Final Capacity 8 | 8 8 8 Final Carried 8 | 8 8 8 Class Distribution -------------------- 61% | Mutant 38% | Scavenger-Mutant Dominant Class ---------------- Mutant | -10/Materials Scavenger-Mutant | -10/Subcaves Resources | -11 -10 -10 ----------- Run | Yrd Mat Sub Matter Collected 440 | 268 172 . Remotely . | . . . Salvage Created 716 | 240 476 . Parts 51 | 20 31 . Haulers Intercepted 1 | . 1 . Recyclers Shooed 1 | . 1 . Parts Field Recycled . | . . . Retrieved Matter . | . . . Parts Self-Destructed 10 | . . 10 Prevented . | . . . Kills | -11 -10 -10 ------- Run | Yrd Mat Sub Combat Hostiles Destroyed 8 | . 8 . Guns 8 | . 8 . Classes Destroyed 8 | 2 6 . Builder 2 | . 2 . Tunneler 8 | 8 . . Hauler 1 | . 1 . Recycler 2 | 1 1 . Mechanic 1 | . 1 . Operator 1 | . 1 . Swarmer 3 | . 3 . Grunt 5 | . 5 . Best Kill Streak 6 | 6 4 . Combat Bots Only 3 | . 3 . Max Kills in Single Turn 1 | 1 1 . Gunslinging . | . . . Exploded . | . . . Melee . | . . . Uniques/NPCs Destroyed . | . . . Combat | -11 -10 -10 -------- Run | Yrd Mat Sub Hostile Shots Fired 50 | . 30 20 Missed 14 | . 9 5 Hits 36 | . 21 15 Projectile 36 | . 21 15 Damage Taken 599 | . 219 380 Core 259 | . 67 192 Absorbed by Shields . | . . . Regen/Repaired (Parts) 10 | . 10 . Core Remaining (%) 100 | 100 . . Volleys Fired 73 | 20 45 8 Largest 2 | 2 2 2 Hottest 100 | 80 100 80 Shots Fired 139 | 40 86 13 Gun 135 | 40 82 13 Cannon . | . . . Launcher . | . . . Special 4 | . 4 . Kinetic . | . . . Thermal 139 | 40 86 13 Explosive . | . . . Electromagnetic . | . . . Robot Hit Streak 16 | 5 11 16 Robot Miss Streak 4 | 3 4 1 Penetration Max . | . . . Secondary Targets 1 | . 1 . Max Gunslinging Chain 1 | . 1 . Shots Hit Robots 84 | 19 53 12 Core Hits 35 | 10 24 1 Critical Kills . | . . . Critical Parts Destroyed . | . . . Critical Strikes . | . . . Melee Attacks . | . . . Impact . | . . . Slashing . | . . . Piercing . | . . . Sneak Attacks . | . . . Combat Hostiles . | . . . Follow-up Attacks . | . . . Damage Inflicted 954 | 207 605 142 Guns 954 | 207 605 142 Cannons . | . . . Explosions . | . . . Melee . | . . . Ramming . | . . . Kinetic . | . . . Thermal 954 | 207 605 142 Explosive . | . . . Electromagnetic . | . . . Impact . | . . . Slashing . | . . . Piercing . | . . . Highest Corruption . | . . . Average Corruption . | . . . Corruption Purged . | . . . Corruption Blocked . | . . . Overload Shots . | . . . Overflow Damage . | . . . Projectiles . | . . . Explosions . | . . . Melee . | . . . Knockbacks . | . . . Impact . | . . . Kinetic . | . . . Secondary . | . . . Self-Inflicted Damage . | . . . Shots . | . . . Rammed . | . . . Targets Rammed . | . . . Kicked . | . . . Crushed . | . . . Highest Temperature 212 | 138 212 . Average Temperature 61 | 56 64 . Received Heat Transfer 210 | . 96 114 Effects 1 | . 1 . Energy Bleed 1 | . 1 . Siege Activations . | . . . Martial Activations . | . . . Shielding Activations . | . . . Robots Disrupted . | . . . Combat Hostiles . | . . . Robots Corrupted . | . . . Combat Hostiles . | . . . Parts Fried . | . . . Impact Corruptions . | . . . Robots Melted . | . . . Combat Hostiles . | . . . Parts Melted 3 | . 3 . Heat Transferred 2175 | 475 1375 325 Parts Sabotaged . | . . . Parts Stolen . | . . . Parts Stripped . | . . . Power Chain Reactions . | . . . Alert | -11 -10 -10 ------- Run | Yrd Mat Sub Maximum Alert Level . | . . . Low Security (%) 100 | 100 100 . Level 1 . | . . . Level 2 . | . . . Level 3 . | . . . Level 4 . | . . . Level 5 . | . . . High Security . | . . . Max Security . | . . . Peak Influence 75 | 15 75 . Initial 3 | . 3 . Average 10 | 2 11 . Influence Increases 310 | 45 265 . Destroy 0b10 Robot/C 160 | . 160 . Destroy 0b10 Robot/NC 75 | 45 30 . Destroy Leader 42 | . 42 . Successful Hack 14 | . 14 . Destroy Structure 4 | . 4 . Partial Spotted 15 | . 15 . Influence Decreases 310 | 40 269 1 Entered New Map 3 | . 2 1 Time Decay 307 | 40 267 . Squads Dispatched 2 | . 2 . Investigation 1 | . 1 . Extermination . | . . . Reinforcement 1 | . 1 . Assault . | . . . Garrison . | . . . Intercept . | . . . Searches Triggered . | . . . Construction Impeded . | . . . Haulers Reinforced . | . . . Active Scanning Responses . | . . . Cargo Convoy Interrupts . | . . . Stealth | -11 -10 -10 --------- Run | Yrd Mat Sub Distress Signals 1 | . 1 . Communications Jammed . | . . . Distress Signals . | . . . Times Spotted 11 | . 9 2 Peak Tracking Total 3 | . 3 2 Tactical Retreats . | . . . Traps | -11 -10 -10 ------- Run | Yrd Mat Sub Traps Triggered 2 | . 2 . Indirectly . | . . . Trap Hack Attempts . | . . . Triggered . | . . . Disarmed . | . . . Reprogrammed . | . . . Reused . | . . . Traps Extracted . | . . . Installed . | . . . Triggered . | . . . Machines | -11 -10 -10 ---------- Run | Yrd Mat Sub Machines Disabled . | . . . Max in Single Turn . | . . . Machines Repaired . | . . . Machines Dismantled . | . . . Machines Sabotaged . | . . . Overloaded Fab Kills . | . . . Hacking | -11 -10 -10 --------- Run | Yrd Mat Sub Machines Accessed 3 | . 3 . Terminals 2 | . 2 . Fabricators . | . . . Repair Stations 1 | . 1 . Recycling Units . | . . . Scanalyzers . | . . . Garrison Access . | . . . Total Hacks 12 | . 12 . Successful 5 | . 5 . Failed 7 | . 7 . Catastrophic . | . . . Database Lockouts . | . . . Manual 9 | . 9 . Terminals 10 | . 10 . Fabricators . | . . . Repair Stations 2 | . 2 . Recycling Units . | . . . Scanalyzers . | . . . Garrison Access . | . . . Terminal Hacks 2 | . 2 . Terminal Index 1 | . 1 . Zone Layout 1 | . 1 . Fabricator Hacks . | . . . Repair Station Hacks 2 | . 2 . Scan Component 1 | . 1 . Repair 1 | . 1 . Recycling Unit Hacks . | . . . Scanalyzer . | . . . Garrison Access Hacks . | . . . Unauthorized Hacks 1 | . 1 . Terminals 1 | . 1 . Botnet 1 | . 1 . Fabricators . | . . . Repair Stations . | . . . Recycling Units . | . . . Scanalyzers . | . . . Garrison Access . | . . . Data Cores Recovered . | . . . Used . | . . . Hacking Detections 3 | . 3 . Full Trace Events 1 | . 1 . Feedback Events . | . . . Feedback Blocked . | . . . Robot Schematics Acquired . | . . . Robots Built . | . . . Authchips . | . . . Time . | . . . Total Robot Build Rating . | . . . Part Schematics Acquired . | . . . Parts Built . | . . . Authchips . | . . . Time . | . . . Total Part Build Rating . | . . . Parts Repaired 1 | . 1 . Time 26 | . 26 . Parts Recycled . | . . . Recycled Matter . | . . . Retrieved Matter . | . . . Retrieved Components . | . . . Parts Scanalyzed . | . . . Part Schematics Acquired . | . . . Parts Damaged . | . . . Bothacking | -11 -10 -10 ------------ Run | Yrd Mat Sub Used RIF Installer . | . . . Robots Hacked . | . . . Non-combat . | . . . Combat . | . . . Robot Hacks Applied . | . . . Relay Couplers Released . | . . . Fabnet Peak Effective % . | . . . Robots Rewired . | . . . Allies Hacked . | . . . Hacks Repelled . | . . . Allies | -11 -10 -10 -------- Run | Yrd Mat Sub Total Allies . | . . . Largest Group . | . . . Highest-Rated Group . | . . . Highest-Rated Ally . | . . . Total Orders . | . . . Ally Attacks . | . . . Total Damage . | . . . Kills . | . . . Allies Corrupted . | . . . Allies Melted . | . . . Intel | -11 -10 -10 ------- Run | Yrd Mat Sub Active Infowar (turns) 2494 | 163 1798 533 Terrain 2089 | . 1652 437 Structural 58 | . 37 21 Seismic 347 | 163 109 75 Robot Analysis Total . | . . . Derelict Logs Recovered . | . . . Drone Launches . | . . . Drone Recoveries . | . . . Exploration | -11 -10 -10 ------------- Run | Yrd Mat Sub Turns Passed 2612 | 259 1798 555 Spaces Moved 493 | 69 351 73 Core 3 | 3 . . Treads . | . . . Legs . | . . . Wheels 490 | 66 351 73 Hover . | . . . Flight . | . . . Fastest Speed 50 | 50 90 90 Average Speed 89 | 87 90 90 Slowest Speed 90 | 90 90 90 Overloaded Moves . | . . . Propulsion Burnouts . | . . . Robots Hopped . | . . . Potential Cave-ins . | . . . Cave-ins Triggered . | . . . Exploration Rate (%) 15 | 3 36 6 Regions Visited 2 Branch Regions 1 Pre-discovered Areas . | . . . Known Exits Taken . | . . . Unknown Exits Taken 2 | 1 1 . Scrap Searched . | . . . Spaces Dug 4 | . 4 . Terrain Destroyed 4 | . 4 . Melee . | . . . Projectile 4 | . 4 . AOE . | . . . Terrain Rammed . | . . . Walls Destroyed . | . . . Machines Disabled . | . . . Actions | -11 -10 -10 --------- Run | Yrd Mat Sub Total 2504 | 224 1734 546 Wait 1884 | 120 1306 458 Move 491 | 68 350 73 Hop . | . . . Pick Up 14 | 9 5 . Fast Attach 10 | 6 4 . Attach 1 | 1 . . Detach . | . . . Swap 23 | . 16 7 Drop 8 | . 8 . Fire 73 | 20 45 8 Melee . | . . . Ram . | . . . Kick . | . . . Crush . | . . . Escape Stasis . | . . . Rewire . | . . . Trap . | . . . Miscellaneous . | . . . Route ------- -11/Scrapyard -10/Materials -10/Subcaves History --------- Turn | Location | Event 21 | -11/Scrapyard | Discovered new exit (range 16) 260 | -11/Scrapyard | Entered Materials 309 | -10/Materials | Build established: Mutant 446 | -10/Materials | Repaired Com. Wheel 1894 | -10/Materials | Build established: Scavenger-Mutant 2038 | -10/Materials | Discovered new exit (range 13) 2058 | -10/Materials | Entered Subcaves 2071 | -10/Subcaves | A swath of the cavern ceiling suddenly collapsed 2605 | -10/Subcaves | Core integrity fell below 50% 2610 | -10/Subcaves | Core integrity fell below 20% 2613 | -10/Subcaves | Destroyed by ZX-9LH(R) with Subdweller Beam Cannon Last Messages --------------- 01611_ Acquired Imp. Heat Sink. 01616_ Acquired 20 matter. 01688_ K-01 Serf collects debris. 01691_ R-06 Scavenger collects Ion Engine. 01691_ K-01 Serf collects debris. 01699_ R-06 Scavenger collects Heat Sink. 01704_ R-06 Scavenger collects Sml. Laser. 01705_ K-01 Serf cleans the Atomic Centrifuge. 01748_ K-01 Serf collects debris. 01756_ R-06 Scavenger collects Aluminum Leg. 01828_ K-01 Serf cleans the Atomic Centrifuge. 02038_ EXIT=FOUND LOCATION=UNKNOWN AMBIENT_HEAT=-10 GOAL=ESCAPE A swath of the cavern ceiling suddenly collapses. 02603_ Wheel destroyed. 02605_ Sml. Laser destroyed. 02605_ Lgt. Ion Engine destroyed. 02608_ Com. Wheel destroyed. Map ----- +----------------------------------------------------+ | ?????????????????????????????????????????????????? | | ?????????????????????????????????????????????????? | | ?????????????????????????????????????????????????? | | ?????????????????????????????????????????????????? | | ?????????????????????????????????????????????????? | | ?????????????????????????????????????????????????? | | ?????????????????????????????????????????????????? | | ?????????????????????????????????????????????????? | | ?????????????????????????????????????????? #?????? | | ?????????????????????????#????? ????????? #???? | | ????????????????????#?#??#???? ????????? #???? | | ?????????????????????????????? ??????## ????? | | ??????????????????????#?#?????? ?#### ???## | | ??????????????????#?????#???#??? ## ??## | | ??????????????#?#??##????????# ?? ??# | | ????????????????#???#??????###?#??# ???# | | ????????????????????????#?????#????# ????# # | | ?????????????##???????????#??#????## #????# # | | ???????????????#???#??#??????????## ###### # | | ?????????????#???#????##?####????# | | ???????????#?????????????#####???# | | ????????????#??????????### ####### | | ???????????????##??????### ###### ### ## ## | | ??????????????????????### ## ####### ### | | ??????????????##??#???### R ##????# # | | ????????????#?????#?#?# ;@R ##?#?### | | ???????????#?????#?#??##### ##?#?#?## # # | | ????????????????#???#??#### ###?????##### | | ??????????????????#?????#?# ###????????## | | ??????????????????????????# ##????????#?# | | ??????????#???#????#?????## #####???????#? | | ????????????????#?#???????# ###????#?????? | | ?????????????????????????## #?????##???#?? | | ???????????????????#?#???? ##???#???#?##?? | | ?????????????#??????????? ##???????#?????? | | ?????????????#?????#???? ##???????#??#??#? | | ??????????????????????? #??#????????????? | | ???????????????? ??? ? ## ###???????##??#??# | | ????????????????? ?????# #####??????????#?#???? | | ?????????????????? ???## ###?????????????????#?# | | ???????????????????????## #?#?#??????????????##?? | | ???????????????????????? ???????????????????###? | | ????????????????????????# #?????????????????????#? | | ????????????????????????##???????????????????????? | | ?????????????????????????????????????????????????? | | ?????????????????????????????????????????????????? | | ?????????????????????????????????????????????????? | | ?????????????????????????????????????????????????? | | ?????????????????????????????????????????????????? | | ?????????????????????????????????????????????????? | +----------------------------------------------------+ Best States ------------- Heat Dissipation 39 Energy Generation 10 Energy Capacity 250 Matter Stores 300 Matter Capacity 300 Sight Range 16 Terrain Scan Range 16 Terrain Scan Density 10 Evasion (%) 42 Item Schematics ----------------- None Robot Schematics ------------------ None Fabricated ------------ Nothing Repaired ---------- Com. Wheel | 66% | -10/Materials Alien Tech Used ----------------- None Achievements -------------- None Challenges ------------ None Game ------ Seed InterceptNeutrinoFlakker Manual? 0 Play Time 00:14:07 Cumulative 233.7 hours Start 2025.05.13 @ 08:22:04 End 2025.05.13 @ 08:40:31 Sessions 1 Manual Loads 0 Difficulty Rogue Special Mode None Game No. 365 Rogue 365 Adventurer 0 Explorer 0 Win Type - Total 0 Types 0/0/0/0/0/0/0/0/0/0 Lore% 38 Gallery% 51 Achievement% 41 Wizard Run 0 Options --------- Layout 0 ASCII 0 Keyboard 0 Movement Mouse Keybinds 0 Fullscreen 1 Font 18/SmallcapsGlow Map View 76x50 Zoom Use 0% Tactical HUD 1 Map Filters NONE Filters NONE Steam 1 RUN: d72673f2-829d-4df8-9993-cc1c8c9d0f53